Workbook

Sheet Berechnung der Verzugszinsen
B3: Verzugszinsberechnung
B5: alle Werte in EUR | N5: Weitere Informationen, wie Sie Verzugszinsen
N6: rechtssicher berechnen, lesen Sie in unserem
B7: Forderung: | C7: 1,000.00 € | D7: vom: | E7: 2019-03-01 | H7: aus Rechnung-Nr.: | J7: Ziel: | K7: 30 | L7: Tage | N7: Themenspeicher
B9: Zahlungsdatum: | C9: 2020-10-13 | D9: (bzw. Tag vor Insolvenzeröffnung) | H9: Handels- oder Verbrauchergeschäft: | K9: 9 | L9: %
B11: Periode | C11: Forderung | D11: Anfang Verzug | E11: Ende Verzug datum | F11: Tage | G11: Tage/ Jahr | H11: Basiszins f. Periode | I11: Verzugs- zinssatz | J11: Gesamt-% | K11: Zinsbetrag/ Tag | L11: Zinsbetrag
B13: Periode 1 | C13: =$C$7 -> 1,000.00 € | D13: =E7+K7 -> 2019-03-31 | E13: =IF(D13="","",IF(VLOOKUP($D13,$E$48:$G$118,3,1)>$C$9,$C$9,VLOOKUP($D13,$E$48:$G$118,3,1))) -> 2019-06-30 | F13: =IF(E13="","",E13-D13+1) -> 92 | G13: =IF(D13="","",DATE(YEAR(E13)+1,1,1)-DATE(YEAR(E13),1,1)) -> 365 | H13: =IF(D13="","",VLOOKUP($E13,$E$48:$H$118,4,1)*100) -> -0.88 | I13: =K9 -> 9 | J13: =IF(E13="","",I13+H13) -> 8.12 | K13: =IF(E13="","",ROUND(C13/G13*J13/100,4)) -> 0.2225 € | L13: =IF(E13="","",C13/G13*F13*J13/100) -> 20.47 € | N13: In dieser mit einem Blattschutz versehenen Version
B14: Periode 2 | C14: =IF(D14="","",$C$7) -> 1,000.00 € | D14: =IF(E13<$C$9,E13+1,"") -> 2019-07-01 | E14: 2019-12-31 | F14: =IF(E14="","",E14-D14+1) -> 184 | G14: =IF(D14="","",DATE(YEAR(E14)+1,1,1)-DATE(YEAR(E14),1,1)) -> 365 | H14: -0.88 | I14: =I13 -> 9 | J14: =IF(E14="","",I14+H14) -> 8.12 | K14: =IF(E14="","",ROUND(C14/G14*J14/100,4)) -> 0.2225 € | L14: =IF(E14="","",C14/G14*F14*J14/100) -> 40.93 € | N14: können Sie Mithilfe des Makros die Zeilen aufgliedern.
B15: Periode 3 | C15: =IF(D15="","",$C$7) -> 1,000.00 € | D15: =IF($C$9>E14,E14+1,"") -> 2020-01-01 | E15: 2020-06-30 | F15: =IF(E15="","",E15-D15+1) -> 182 | G15: =IF(D15="","",DATE(YEAR(E15)+1,1,1)-DATE(YEAR(E15),1,1)) -> 366 | H15: -0.88 | I15: =IF(D15="","",I14) -> 9 | J15: =IF(E15="","",I15+H15) -> 8.12 | K15: 0.2219 € | L15: =IF(E15="","",ROUND(C15/G15*F15*J15/100,2)) -> 40.38 € | N15: Eine Version ohne Blattschutz erhalten Sie gegen
B16: Periode 4 | C16: =IF(D16="","",$C$7) -> 1,000.00 € | D16: =IF($C$9>E15,E15+1,"") -> 2020-07-01 | E16: 2020-10-13 | F16: =IF(E16="","",E16-D16+1) -> 105 | G16: 366 | H16: -0.88 | I16: =IF(D16="","",I15) -> 9 | J16: =IF(E16="","",I16+H16) -> 8.12 | K16: 0.2219 € | L16: =IF(E16="","",ROUND(C16/G16*F16*J16/100,2)) -> 23.30 € | N16: einen kleinen Obolus bei unserem Service:
B17: Periode 5 | F17: =IF(E17="","",E17-D17+1) ->  | J17: =IF(E17="","",I17+H17) ->  | L17: =IF(E17="","",ROUND(C17/G17*F17*J17/100,2)) ->  | N17: service@controllerspielwiese.de
B18: Periode 6
B19: Periode 7
B20: Periode 8
B21: Periode 9
B22: Periode 10
B23: Periode 11
B24: Periode 12 | F24: =IF(E24="","",E24-D24+1) ->  | G24: =IF(D24="","",DATE(YEAR(E24)+1,1,1)-DATE(YEAR(E24),1,1)) ->  | I24: =IF(D24="","",I23) ->  | J24: =IF(E24="","",I24+H24) ->  | K24: =IF(E24="","",ROUND(C24/G24*J24/100,4)) ->  | L24: =IF(E24="","",ROUND(C24/G24*F24*J24/100,2)) -> 
B25: Periode 13
B26: Periode 14
B27: Periode 15
B28: Periode 16
B29: Periode 17
B30: Periode 18
B31: Periode 19
B32: Periode 20
B33: Periode 21
B34: Periode 22
B35: Periode 23
B36: Periode 24
B37: Periode 25
B38: Periode 26 | F38: =IF(E38="","",E38-D38+1) ->  | G38: =IF(D38="","",DATE(YEAR(E38)+1,1,1)-DATE(YEAR(E38),1,1)) ->  | H38: =IF(D38="","",VLOOKUP($E38,$E$48:$H$118,4,1)*100) ->  | I38: =IF(D38="","",I37) ->  | J38: =IF(E38="","",I38+H38) ->  | K38: =IF(E38="","",ROUND(C38/G38*J38/100,4)) ->  | L38: =IF(E38="","",ROUND(C38/G38*F38*J38/100,2)) -> 
B39: Periode 27
B40: Periode 28
B41: Periode 29
B42: Periode 30 | E42: =IF(D42="","",IF(VLOOKUP($D42,$E$48:$G$118,3,1)>$C$9,$C$9,VLOOKUP($D42,$E$48:$G$118,3,1))) -> 
B44: Summe | F44: =SUM(F13:F43) -> 563 | L44: =ROUND(SUM(L13:L43),2) -> 125.08 €
K46: Die Gesamtforderung beträgt: | L46: =C7+L44 -> 1,125.08 €
B48: Basiszinssätze für den Zeitraum: | E48: 1999-01-01 | F48: bis | G48: 1999-04-30 | H48: 2.50%
E49: 1999-05-01 | F49: bis | G49: 1999-12-31 | H49: 1.95%
E50: 2000-05-01 | F50: bis | G50: 2000-08-31 | H50: 3.42%
E51: 2000-09-01 | F51: bis | G51: 2001-08-31 | H51: 4.26%
E52: 2001-09-01 | F52: bis | G52: 2001-12-31 | H52: 3.62%
E53: 2002-01-01 | F53: bis | G53: 2002-06-30 | H53: 2.57%
E54: 2002-07-01 | F54: bis | G54: 2002-12-31 | H54: 2.47%
E55: 2003-01-01 | F55: bis | G55: 2003-06-30 | H55: 1.97%
E56: 2003-07-01 | F56: bis | G56: 2003-12-31 | H56: 1.22%
E57: 2004-01-01 | F57: bis | G57: 2004-06-30 | H57: 1.14%
E58: 2004-07-01 | F58: bis | G58: 2004-12-31 | H58: 1.13%
E59: 2005-01-01 | F59: bis | G59: 2005-06-30 | H59: 1.21%
E60: 2005-07-01 | F60: bis | G60: 2005-12-31 | H60: 1.17%
E61: 2006-01-01 | F61: bis | G61: 2006-06-30 | H61: 1.37%
E62: 2006-07-01 | F62: bis | G62: 2006-12-31 | H62: 1.95%
E63: 2007-01-01 | F63: bis | G63: 2007-06-30 | H63: 2.70%
E64: 2007-07-01 | F64: bis | G64: 2007-12-31 | H64: 3.19%
E65: 2008-01-01 | F65: bis | G65: 2008-06-30 | H65: 3.32%
E66: 2008-07-01 | F66: bis | G66: 2008-12-31 | H66: 3.19%
E67: 2009-01-01 | F67: bis | G67: 2009-06-30 | H67: 1.62%
E68: 2009-07-01 | F68: bis | G68: 2009-12-31 | H68: 0.12%
E69: 2010-01-01 | F69: bis | G69: 2010-06-30 | H69: 0.12%
E70: 2010-07-01 | F70: bis | G70: 2010-12-31 | H70: 0.12%
E71: 2011-01-01 | F71: bis | G71: 2011-06-30 | H71: 0.12%
E72: 2011-07-01 | F72: bis | G72: 2011-12-31 | H72: 0.37%
E73: 2012-01-01 | F73: bis | G73: 2012-06-30 | H73: 0.12%
E74: 2012-07-01 | F74: bis | G74: 2012-12-31 | H74: 0.12%
E75: 2013-01-01 | F75: bis | G75: 2013-06-30 | H75: -0.13%
E76: 2013-07-01 | F76: bis | G76: 2013-12-31 | H76: -0.38%
E77: 2014-01-01 | F77: bis | G77: 2014-06-30 | H77: -0.63%
E78: 2014-07-01 | F78: bis | G78: 2014-12-31 | H78: -0.73%
E79: 2015-01-01 | F79: bis | G79: 2015-06-30 | H79: -0.83%
E80: 2015-07-01 | F80: bis | G80: 2015-12-31 | H80: -0.83%
E81: 2016-01-01 | F81: bis | G81: 2016-06-30 | H81: -0.83%
E82: 2016-07-01 | F82: bis | G82: 2016-12-31 | H82: -0.88%
E83: 2017-01-01 | F83: bis | G83: 2017-06-30 | H83: -0.88%
E84: 2017-07-01 | F84: bis | G84: 2017-12-31 | H84: -0.88%
E85: 2018-01-01 | F85: bis | G85: 2018-06-30 | H85: -0.88%
E86: 2018-07-01 | F86: bis | G86: 2018-12-31 | H86: -0.88%
E87: 2019-01-01 | F87: bis | G87: 2019-06-30 | H87: -0.88%
E88: 2019-07-01 | F88: bis | G88: 2019-12-31 | H88: -0.88%
E89: 2020-01-01 | F89: bis | G89: 2020-06-30 | H89: -0.88%
D90: seit | E90: 2020-07-01 | F90: bis | G90: 2020-12-31 | H90: -0.88%
B91: Erweitern Sie diese Tabelle
B92: um die halbjährlich neu
B93: festgelegten Werte. Diese
B94: finden Sie bei uns:
B95: Aktuelle Basiszinssätze
